bitfinex/quotes_ETHUSD_20220201
["timestamp","ask_amount","ask_price","bid_price","bid_amount"]
[1643677197169,0.3,2691.7,2691.0,0.8117286]
[1643677197365,0.3,2691.5,2691.0,0.8117286]
[1643677197568,1.56412539,2691.4,2691.0,0.8117286]
[1643677197770,3.55328201,2691.6,2691.0,0.8117286]
[1643677197967,1.56413399,2691.5,2691.0,0.8117286]
[1643677198370,1.86413399,2691.5,2691.0,0.8117286]
[1643677198585,1.56413399,2691.4,2691.0,0.8117286]
[1643677200176,1.56413399,2691.4,2691.0,0.80016991]
[1643677200483,3.51607592,2691.4,2691.0,0.80016991]
[1643677200678,1.56413399,2691.3,2691.0,0.80016991]
[1643677200921,0.3,2691.5,2691.0,0.80016991]
[1643677201123,1.56413673,2691.4,2691.0,0.80016991]
[1643677202125,1.56413673,2691.4,2691.2,0.1513158]
[1643677202324,1.56413673,2691.4,2691.0,0.80016991]
[1643677203129,1.56413673,2691.3,2691.0,0.80016991]
[1643677203326,1.56413673,2691.2,2691.0,0.80016991]
[1643677203528,0.94187199,2691.6,2691.0,0.80016991]
[1643677203529,1.56413673,2691.1,2691.0,0.80016991]
[1643677203725,1.09087699,2691.6,2691.3,0.1513158]
[1643677203726,1.96977687,2691.5,2691.3,0.1513158]
[1643677203927,1.56419188,2691.4,2691.3,0.1513158]
[1643677204126,1.56419188,2691.4,2690.7,3.77216904]
[1643677204329,1.56419188,2691.3,2690.7,3.95786904]
[1643677204573,0.94187199,2691.6,2690.7,3.77216904]
[1643677204574,1.56419188,2691.2,2690.7,3.77216904]
[1643677204773,1.56419188,2691.1,2690.7,2.55416904]
[1643677204974,0.94187199,2691.6,2690.7,2.55416904]
[1643677205174,1.56420034,2691.5,2691.1,0.1513158]
[1643677205373,1.56420034,2691.5,2691.0,0.68468288]
[1643677206181,3.52704363,2691.5,2691.0,0.68468288]
[1643677206379,1.56420034,2691.4,2691.0,0.68468288]
[1643677206582,1.56420034,2691.3,2691.0,0.68468288]
[1643677206785,1.973426,2691.5,2691.3,0.1513158]
[1643677206981,1.5141496,2691.4,2691.3,0.1513158]
[1643677207189,0.94187199,2691.6,2690.7,2.55416904]
[1643677207381,1.78802385,2691.6,2690.7,2.55416904]
[1643677207783,0.3,2691.5,2690.7,2.55416904]
[1643677207983,0.3,2691.5,2690.8,0.67758164]
[1643677208318,0.3,2691.5,2691.2,0.1513158]
[1643677208723,0.3,2691.5,2690.8,0.67758164]
[1643677209220,0.25,2691.5,2691.2,0.46897077]
[1643677209421,0.94714586,2691.5,2691.2,0.93794154]
[1643677209819,0.94714586,2691.5,2691.4,0.1513158]
[1643677210425,0.25,2691.5,2691.4,0.1513158]
[1643677211426,1.17304966,2691.5,2691.4,0.1513158]
[1643677212671,0.92304966,2691.5,2691.4,0.1513158]
[1643677213277,0.92917,2691.6,2691.4,0.1513158]
[1643677213478,0.92715387,2691.6,2691.2,0.93794154]
[1643677213681,0.69545187,2691.5,2691.2,0.93794154]
[1643677214075,0.69545187,2691.6,2691.2,0.93794154]
[1643677214472,0.69545187,2691.5,2691.2,0.32259957]
[1643677215273,1.40100319,2692.0,2691.2,0.32259957]
[1643677215274,0.69545187,2691.4,2691.2,0.32259957]
[1643677215473,0.69545187,2691.4,2691.3,0.79485863]
[1643677216123,0.92715387,2691.5,2691.3,0.79485863]
[1643677216522,0.92715387,2691.4,2691.3,0.79485863]
[1643677216825,1.40100319,2691.7,2690.9,0.1857]
[1643677216826,1.22715387,2691.5,2690.9,0.1857]
[1643677217024,0.69708709,2691.2,2690.8,1.1395]
[1643677217223,0.69708709,2691.2,2690.7,3.08382149]
[1643677217423,2.15386923,2691.1,2690.5,0.92914]
[1643677217626,0.69708709,2690.8,2690.4,1.1294]
[1643677217826,0.69708709,2690.6,2690.2,0.69808622]
[1643677218024,0.69708709,2690.6,2689.9,3.4733]
[1643677218025,1.56638709,2690.6,2689.9,3.4733]
[1643677218225,1.56638709,2690.6,2689.8,0.1857]
[1643677218425,2.55627709,2690.4,2689.6,0.1857]
[1643677218628,2.55627709,2690.4,2689.3,3.6033]
[1643677218629,2.39769709,2690.2,2689.3,3.6033]
[1643677218857,4.30161209,2690.1,2689.3,3.6033]
[1643677219128,4.77191209,2690.1,2689.3,3.6033]
[1643677219424,0.99708709,2690.0,2689.1,0.70625303]
[1643677219673,1.85959,2689.8,2689.6,0.93794154]
[1643677219884,1.85959,2689.8,2689.6,1.08925734]
[1643677220073,1.96747967,2689.7,2689.6,0.93794154]
[1643677220273,3.19727967,2689.7,2689.6,0.93794154]
[1643677220690,5.08358967,2689.7,2689.6,0.93794154]
[1643677220873,6.34436676,2689.7,2689.6,0.93794154]
[1643677221074,8.04497676,2689.7,2689.6,0.93794154]
[1643677221281,8.04497676,2689.7,2689.6,1.08925734]
[1643677221475,7.53358967,2689.7,2689.6,1.08925734]
[1643677221876,5.26928967,2689.7,2689.6,1.08925734]
[1643677222876,8.06928967,2689.7,2689.6,1.08925734]
[1643677223723,8.06928967,2689.7,2688.8,0.73278663]
[1643677223724,0.57994843,2689.1,2688.8,0.73278663]
[1643677223929,0.57994843,2689.1,2688.8,0.68228863]
[1643677224937,0.57994843,2689.1,2688.9,0.1859]
[1643677225929,0.57994843,2689.1,2689.0,4.86732261]
[1643677226167,0.57994843,2689.1,2689.0,5.05322261]
[1643677226730,0.57994843,2689.1,2689.0,0.60322261]
[1643677226930,0.57994843,2689.1,2688.8,0.68228863]
[1643677227771,0.57994843,2689.1,2688.9,0.1859]
[1643677231418,0.57994843,2689.1,2688.8,0.68228863]
[1643677240051,0.57994843,2689.1,2688.5,0.1859]
[1643677240254,0.87994843,2689.1,2688.5,0.1859]
[1643677240451,0.87994843,2689.1,2688.3,0.1859]
[1643677240853,0.87994843,2689.1,2688.4,1.8596441]
[1643677241055,0.87994843,2689.1,2688.9,0.82047443]
[1643677241253,0.57994843,2689.1,2688.5,0.1859]
[1643677241860,0.57994843,2689.1,2688.7,0.34503354]
[1643677242072,0.57994843,2689.1,2688.6,0.1859]
[1643677242275,0.57994843,2689.1,2688.4,0.9297841]
[1643677242276,0.57994843,2689.1,2688.8,0.74522086]
[1643677242576,0.57994843,2689.1,2688.8,0.93112086]
[1643677242773,0.57994843,2689.1,2688.8,0.74522086]
[1643677243173,0.57994843,2689.1,2688.9,0.38012743]
[1643677243383,0.57994843,2689.1,2688.9,0.56602743]
[1643677243978,0.57994843,2689.1,2688.9,1.49570743]
[1643677245115,0.57994843,2689.1,2689.0,7.52751526]
[1643677245283,0.57994843,2689.1,2689.0,9.99214206]
[1643677245682,0.57994843,2689.1,2689.0,10.47804206]
[1643677246178,0.57911945,2689.1,2689.0,10.47804206]
[1643677247249,0.57911945,2689.1,2689.0,2.9505268]
[1643677247634,0.46229993,2690.1,2689.3,0.92954]
[1643677247835,2.78914,2690.5,2689.3,1.8590526]
[1643677247836,1.56461611,2690.0,2689.3,1.8590526]
[1643677248037,0.1857,2690.4,2689.3,2.1590526]
[1643677248238,1.56460236,2690.3,2689.3,2.0444626]
[1643677248439,1.56460236,2690.3,2689.3,1.8590526]
[1643677248440,2.04483,2690.2,2689.3,1.8590526]
[1643677248640,1.56460236,2690.1,2689.3,0.92954]
[1643677248841,0.1857,2690.0,2689.9,0.43177607]
[1643677249044,0.1857,2690.0,2689.4,0.7324379]
[1643677249045,1.56460236,2690.0,2689.4,0.7324379]
[1643677249242,1.85913,2690.2,2689.4,1.0324379]
[1643677249445,0.92956,2690.0,2689.9,0.79984301]
[1643677249676,0.1857,2690.4,2689.9,0.79984301]
[1643677249873,1.5645705,2690.3,2689.5,0.92949]
[1643677250074,0.1857,2690.2,2689.6,0.39831565]
[1643677250275,1.5645705,2690.1,2689.6,0.69831565]
[1643677250479,1.5645705,2690.0,2689.6,0.69831565]
[1643677250675,0.92948,2690.2,2689.6,0.69831565]
[1643677250883,0.92948,2690.2,2689.7,2.93084915]
[1643677251078,0.1857,2690.4,2689.7,0.92942]
[1643677251279,1.56449564,2690.3,2690.1,0.9214121]
[1643677251533,1.56449564,2690.3,2690.2,0.31737678]
[1643677252678,1.56449564,2690.3,2690.2,0.80278678]
[1643677252885,0.32389996,2691.1,2690.2,0.80278678]
[1643677253084,1.56428273,2691.0,2690.3,0.1857]
[1643677253524,1.56428273,2691.0,2690.3,3.08699736]
[1643677253725,0.13819997,2691.3,2690.4,1.0]
[1643677253930,1.56419522,2691.2,2691.0,0.41004908]
[1643677255528,1.74989522,2691.2,2691.0,1.18447383]
[1643677255730,1.56419522,2691.1,2691.0,1.18447383]
[1643677256332,0.1857,2691.5,2691.0,1.18447383]
[1643677256333,1.56419522,2691.4,2691.0,1.18447383]
[1643677256530,1.56419522,2691.3,2691.0,1.18447383]
[1643677256765,1.56419522,2691.2,2691.0,1.18447383]
[1643677256931,1.56419522,2691.1,2691.0,1.18447383]
[1643677257180,1.56419522,2691.4,2691.0,3.04238223]
[1643677257376,1.56419522,2691.4,2691.0,3.34238223]
[1643677257578,1.56419522,2691.4,2691.1,1.0]
[1643677257775,1.56419522,2691.3,2691.1,1.3]
[1643677257981,0.00396869,2691.6,2691.1,1.3]
[1643677258190,0.00300267,2692.6,2691.1,1.3]
[1643677258191,0.22135804,2695.0,2691.5,20.40342835]
[1643677258404,8.97908756,2696.2,2694.9,1.0]
[1643677258590,8.49303859,2696.2,2695.3,1.0]
[1643677258788,1.84322946,2696.5,2695.4,0.72041]
[1643677258789,1.3824221,2696.5,2695.4,0.72041]
[1643677258982,0.26348653,2696.1,2695.4,0.67041]
[1643677259192,0.16648943,2696.6,2696.2,0.01227529]
[1643677259395,1.11237709,2696.6,2696.5,6.686]
[1643677259586,34.98006293,2696.7,2696.5,7.221]
[1643677259782,29.41809293,2696.7,2696.5,7.70643]
[1643677259984,29.41809293,2696.7,2696.5,1.02043]
[1643677260177,0.46179993,2697.6,2696.5,1.02043]
[1643677260178,0.46179993,2697.6,2696.5,1.835]
[1643677260381,0.46179993,2697.6,2697.3,0.01282502]
[1643677260382,0.35906251,2697.5,2697.3,0.01282502]
[1643677260580,1.0794768,2697.7,2697.4,0.535]
[1643677261050,0.04035806,2697.6,2697.4,0.535]
[1643677261238,0.04035806,2697.6,2697.4,0.835]
[1643677261438,4.78313303,2697.5,2697.4,0.535]
[1643677261653,4.1,2697.5,2697.4,0.535]
[1643677261844,4.2852,2697.5,2696.8,0.9268505]
[1643677262084,0.1852,2697.4,2696.5,0.3]
[1643677262242,0.1852,2697.4,2696.5,0.535]
[1643677262648,0.1852,2697.4,2696.6,2.0]
[1643677262845,0.04035806,2697.6,2696.9,0.01249512]
[1643677263043,0.04035806,2697.6,2697.0,0.535]
[1643677263245,0.04035806,2697.6,2697.1,2.15575916]
[1643677263442,0.04035806,2697.6,2697.2,0.535]
[1643677263742,0.04035806,2697.6,2697.2,1.535]
[1643677263946,0.34068604,2697.5,2697.2,1.535]
[1643677264182,0.34068604,2697.5,2696.9,0.535]
[1643677264183,0.52588604,2697.5,2696.9,0.535]
[1643677264348,0.52588604,2697.5,2696.2,2.0394892]
[1643677264349,0.1852,2697.5,2696.3,2.10387922]
[1643677264592,0.1852,2697.5,2696.6,0.01230717]
[1643677264789,0.04035806,2697.6,2696.7,7.40643]
[1643677264988,0.04035806,2697.6,2697.2,0.01285425]
[1643677265232,0.04035806,2697.6,2697.3,0.535]
[1643677265390,0.22555806,2697.6,2697.3,0.535]
[1643677265591,0.61504212,2697.6,2697.3,0.535]
[1643677266193,0.61504212,2697.6,2697.2,0.01285425]
[1643677266393,0.61504212,2697.6,2697.0,0.535]
[1643677267592,0.3367924,2697.1,2697.0,0.535]
[1643677267993,0.22555806,2697.6,2697.0,0.535]
[1643677268193,0.22555806,2697.6,2697.0,1.50178951]
[1643677268826,0.57579637,2697.6,2697.1,0.0124402]
[1643677269024,0.39059637,2697.6,2697.2,0.535]
[1643677269222,0.39059637,2697.6,2697.2,0.835]
[1643677269629,0.39059637,2697.6,2697.2,1.33699889]
[1643677269828,0.39059637,2697.6,2697.2,1.03699889]
[1643677271727,0.04035806,2697.6,2697.2,1.03699889]
[1643677272385,0.04035806,2697.6,2697.2,0.50199889]
[1643677272779,0.38061639,2697.6,2697.2,0.50199889]
[1643677273983,0.79239774,2697.4,2697.2,0.50199889]
[1643677275483,0.39061639,2697.6,2697.2,0.50199889]
[1643677275690,0.38061639,2697.6,2697.2,0.50199889]
[1643677277158,1.19843614,2697.6,2697.2,0.50199889]
[1643677277561,0.04035806,2697.6,2697.2,0.50199889]
[1643677277757,0.04035806,2697.6,2697.3,0.535]
[1643677277958,0.04035806,2697.6,2697.3,2.63887922]
[1643677278160,0.04035806,2697.6,2697.3,1.58699889]
[1643677278360,0.04035806,2697.6,2697.4,1.0]
[1643677278561,0.3666018,2697.6,2697.5,0.535]
[1643677278758,0.04035806,2697.6,2697.5,0.835]
[1643677278956,0.04035806,2697.6,2697.5,1.03699889]
[1643677279160,0.04035806,2697.6,2697.5,0.50199889]
[1643677279358,2.49035806,2697.6,2697.5,0.50199889]
[1643677279572,0.04035806,2697.6,2697.5,0.50199889]
[1643677279978,0.48598471,2697.6,2697.5,0.50199889]
[1643677282582,0.04035806,2697.6,2697.5,0.50199889]
[1643677283183,0.04035806,2697.6,2697.5,4.15199889]
[1643677283628,5.806e-05,2697.6,2697.5,0.81436273]
[1643677283823,5.806e-05,2697.6,2697.5,1.81436273]
[1643677284025,5.806e-05,2697.6,2697.5,0.8132494]
[1643677284222,5.806e-05,2697.6,2697.5,1.76748246]
[1643677284625,5.806e-05,2697.6,2697.5,1.46859579]
[1643677284827,2.28913728,2697.6,2697.5,1.46859579]
[1643677285027,5.5,2697.5,2697.1,0.1852]
[1643677285229,0.1852,2697.4,2697.1,0.1852]
[1643677285426,0.37420422,2697.3,2697.1,0.1852]
[1643677285628,0.9346771,2697.2,2697.1,0.1852]
[1643677286733,0.9346771,2697.2,2696.5,0.1852]
[1643677286734,0.37638911,2696.8,2696.5,0.1852]
[1643677286935,0.1852,2697.5,2696.4,5.0]
[1643677286936,0.43083992,2696.7,2696.4,5.0]
[1643677287179,0.43083992,2696.7,2696.4,0.25]
[1643677287391,0.43083992,2696.7,2696.3,0.1854]
[1643677287579,0.43083992,2696.7,2696.1,0.01221803]
[1643677287979,0.43083992,2696.7,2696.1,0.26221803]
[1643677288285,0.43083992,2696.7,2696.2,0.4854]
[1643677288480,0.43083992,2696.7,2696.2,0.3]
[1643677288690,0.43083992,2696.7,2696.1,0.26221803]
[1643677288984,0.92591818,2697.1,2696.2,0.3]
[1643677289184,0.91591818,2697.1,2696.2,0.3]
[1643677289379,1.11131818,2697.1,2696.2,0.3]
[1643677289583,0.92591818,2697.1,2696.2,0.3]
[1643677289783,0.91591818,2697.1,2696.2,0.3]
[1643677290184,0.37568742,2696.4,2696.2,0.3]
[1643677290928,0.91591818,2697.1,2696.2,0.3]
[1643677291127,0.00241828,2697.0,2696.2,0.48543]
[1643677291430,0.00241828,2697.0,2696.1,0.4354]
[1643677291431,0.74118659,2696.6,2696.1,0.4354]
[1643677291632,0.1854,2696.9,2696.1,0.25]
[1643677292030,0.33211922,2696.7,2696.1,0.25]
[1643677292829,1.24282635,2696.7,2696.1,0.25]
[1643677294229,0.33211922,2696.7,2696.1,0.25]
[1643677294671,0.38498738,2696.2,2696.1,0.25]
[1643677295172,0.38498738,2696.2,2695.9,1.3]
[1643677295371,0.38498738,2696.2,2695.9,0.3]
[1643677295579,0.38498738,2696.2,2695.8,0.92083]
[1643677295978,0.78175292,2696.7,2695.8,0.92083]
[1643677296178,0.78175292,2696.7,2695.9,2.23882625]
[1643677296379,0.78175292,2696.7,2695.9,1.0]
[1643677296782,0.78175292,2696.7,2695.8,0.92083]
[1643677297382,0.35107502,2696.3,2695.8,0.92083]
[1643677297782,0.35107502,2696.3,2695.8,0.73543]
[1643677297982,0.92752632,2696.2,2695.8,0.25]
[1643677298184,1.42827502,2696.3,2695.8,0.25]
[1643677298424,0.1854,2696.2,2695.8,0.25]
[1643677298824,0.4854,2696.2,2695.8,0.25]
[1643677299230,0.76243277,2696.1,2695.8,0.25]
[1643677299828,0.76243277,2696.1,2695.2,0.1854]
[1643677300030,0.31969494,2695.5,2695.2,0.1854]
[1643677300231,0.1854,2696.0,2695.2,0.1854]
[1643677300631,0.1854,2696.0,2695.3,1.56141022]
[1643677300833,0.1854,2696.0,2695.2,3.27518429]
[1643677301034,0.53741828,2696.7,2695.3,2.56137046]
[1643677301035,0.1854,2696.5,2695.3,2.56137046]
[1643677301242,0.35476438,2696.5,2695.4,4.74929442]
[1643677301534,0.32293807,2696.0,2695.5,2.10865241]
[1643677301736,0.32293807,2696.0,2695.5,0.01228195]
[1643677301932,0.32293807,2696.0,2695.6,1.56122303]
[1643677302206,0.32293807,2696.0,2695.3,3.33943106]
[1643677302379,0.4013715,2695.4,2695.3,1.18543]
[1643677302681,0.00241829,2696.0,2695.3,1.18543]
[1643677302879,0.00241829,2696.0,2695.3,3.97194775]
[1643677303084,0.00241829,2696.0,2695.4,1.56134323]
[1643677303285,0.00241829,2696.0,2695.4,2.86134323]
[1643677303484,0.00483658,2696.0,2695.5,2.23677498]
[1643677304081,0.42299443,2695.6,2695.5,2.23677498]
[1643677304481,0.42541272,2695.6,2695.5,2.23677498]
[1643677305082,0.42541272,2695.6,2695.5,6.68677498]
[1643677305283,0.00241829,2695.6,2695.5,7.68677498]
[1643677305483,0.00241829,2695.6,2695.5,7.87220498]
[1643677305682,0.00483658,2695.6,2695.5,7.89554029]
[1643677306732,0.00725487,2695.6,2695.5,7.89554029]
[1643677307037,0.7825912,2696.5,2696.2,0.64434872]
[1643677307038,0.31807955,2696.4,2696.2,0.64434872]
[1643677307234,0.31807955,2696.4,2696.3,1.56134323]
[1643677307235,0.50347955,2696.4,2696.3,1.56134323]
[1643677308433,0.31807955,2696.4,2696.3,1.56134323]
[1643677311485,0.31807955,2696.4,2696.2,0.64434872]
[1643677311882,0.31807955,2696.4,2696.3,1.56124718]
[1643677312286,0.31807955,2696.4,2696.2,0.64434872]
[1643677312483,0.01209145,2696.5,2696.2,0.64434872]
[1643677312690,0.01209145,2696.5,2696.3,1.56117204]
[1643677312886,0.01450974,2696.5,2696.3,2.56117204]
[1643677313085,0.01450974,2696.5,2696.4,5.41117204]
[1643677313909,0.00241828,2697.1,2696.5,0.00469026]
[1643677314045,1.08248348,2697.7,2696.5,0.00469026]
[1643677314046,1.0794768,2697.7,2697.0,0.01262816]
[1643677314347,1.0794768,2697.7,2697.1,1.74637204]
[1643677314540,1.0794768,2697.7,2697.1,1.99637204]
[1643677314743,1.0794768,2697.7,2697.2,1.56117204]
[1643677314944,0.35000438,2697.4,2697.2,1.56117204]
[1643677315142,1.0794768,2697.7,2697.3,0.18543]
[1643677315344,1.0794768,2697.7,2697.4,1.56117204]
[1643677315742,1.0794768,2697.7,2697.1,0.4352]
[1643677315947,1.0794768,2697.7,2697.2,1.56053491]
[1643677316245,1.0794768,2697.7,2697.2,1.86053491]
[1643677316446,1.0794768,2697.7,2697.3,1.56053491]
[1643677317115,1.0794768,2697.7,2697.1,3.86751662]
[1643677317276,1.0794768,2697.7,2697.2,1.56054062]
[1643677317481,1.42540225,2697.7,2697.2,1.56054062]
[1643677317675,1.0794768,2697.7,2697.2,1.56054062]
[1643677317876,1.0794768,2697.7,2697.1,1.7352]
[1643677318281,1.0794768,2697.7,2697.2,3.77040308]
[1643677318479,1.0794768,2697.7,2697.3,1.56056771]
[1643677318680,1.0694768,2697.7,2697.3,1.0]
[1643677318876,0.37089603,2697.6,2697.3,1.35]
[1643677319678,1.0294768,2697.7,2697.4,2.10638525]
[1643677319878,1.0294768,2697.7,2697.2,1.0]
[1643677320085,1.0294768,2697.7,2697.1,0.25]
[1643677320478,1.0294768,2697.7,2696.8,0.18543]
[1643677320680,0.34295052,2696.9,2696.8,0.62063]
[1643677320931,1.0294768,2697.7,2696.8,0.62063]
[1643677320932,1.0294768,2697.7,2696.8,6.13136352]
[1643677321130,1.0294768,2697.7,2696.8,4.38543]
[1643677321832,1.0294768,2697.7,2696.9,1.0]
[1643677322035,3.40998783,2697.6,2696.9,1.0]
[1643677322233,0.1852,2697.5,2696.4,0.1852]
[1643677322433,0.32503873,2696.7,2696.5,1.56077271]
[1643677322638,0.1852,2697.5,2696.5,1.56077271]
[1643677324233,0.1852,2697.5,2696.5,1.86077271]
[1643677324434,0.1852,2697.5,2696.6,1.56077271]
[1643677324873,0.1852,2697.5,2696.7,2.12349203]
[1643677325074,0.1852,2697.5,2696.8,1.56077271]
[1643677325282,0.33552449,2696.9,2696.8,1.56077271]
[1643677326381,0.33552449,2696.9,2696.7,0.25]
[1643677330632,0.32806045,2696.9,2696.7,0.25]
[1643677331035,0.32806045,2696.9,2696.5,0.1854]
[1643677331235,0.32806045,2696.9,2696.6,1.56078957]
[1643677332780,0.32806045,2696.9,2696.5,0.1854]
[1643677332987,0.32806045,2696.9,2696.4,0.1854]
[1643677333185,0.32806045,2696.9,2696.5,1.56082161]
[1643677333588,0.32806045,2696.9,2696.5,1.86082161]
[1643677333789,0.32806045,2696.9,2696.6,1.56082161]
[1643677336838,0.1854,2697.4,2696.6,1.56082161]
[1643677338039,0.36418973,2696.8,2696.6,1.56082161]
[1643677339138,0.36418973,2696.8,2696.2,0.64434872]
[1643677339339,0.36418973,2696.8,2696.3,1.56080787]
[1643677342701,0.91003335,2696.5,2696.3,1.56080787]
[1643677342904,3.09350149,2696.3,2696.2,0.64434872]
[1643677343334,1.19340149,2696.3,2696.2,0.64434872]
[1643677343743,1.37880149,2696.3,2696.2,0.64434872]
[1643677344140,1.19340149,2696.3,2696.2,0.64434872]
[1643677345044,2.48540244,2696.3,2696.2,0.64434872]
[1643677345442,0.44350149,2696.3,2696.2,0.64434872]
[1643677346844,0.44350149,2696.3,2695.2,0.1854]
[1643677346845,0.4477235,2695.3,2695.2,0.1854]
[1643677347116,0.3214877,2695.3,2695.2,1.56131113]
[1643677347308,0.3214877,2695.3,2695.0,1.56131113]
[1643677347511,0.3214877,2695.3,2694.9,1.56131113]
[1643677347711,0.1855,2696.0,2695.0,1.56131113]
[1643677348014,2.07850411,2695.3,2695.1,1.56131113]
[1643677348224,2.07850411,2695.3,2694.6,2.90704474]
[1643677348225,0.1855,2695.2,2694.6,2.90704474]
[1643677348411,0.1855,2695.2,2694.7,1.56174574]
[1643677348622,0.1855,2695.2,2694.8,1.56174574]
[1643677348816,0.37310175,2694.9,2694.3,0.1854]
[1643677349013,0.37310175,2694.9,2694.4,1.56172354]
[1643677349413,0.8190118,2694.8,2694.4,1.56172354]
[1643677349612,2.0869118,2694.8,2694.4,1.56172354]
[1643677349812,2.3878118,2694.8,2694.4,1.56172354]
[1643677350214,2.3878118,2694.8,2694.4,1.51172354]
[1643677350713,0.1855,2694.7,2694.3,0.1854]
[1643677350945,1.24386,2694.7,2693.7,0.1855]
[1643677351150,1.24386,2694.7,2693.6,7.44]
[1643677351151,0.81526951,2694.0,2693.6,7.44]
[1643677351343,1.60166951,2694.0,2693.6,7.44]
[1643677351645,0.7864,2694.0,2693.2,0.71112758]
[1643677351844,0.7864,2694.0,2693.3,2.68510724]
[1643677352643,1.49079812,2694.0,2693.3,2.68510724]
[1643677352847,0.7864,2694.0,2693.4,1.0]
[1643677353048,0.55,2694.8,2693.5,0.88416969]
[1643677353246,0.34333639,2693.9,2693.5,1.18416969]
[1643677353447,0.34333639,2693.9,2693.5,0.1855]
[1643677354678,0.1855,2694.7,2693.5,0.1855]
[1643677354882,0.60836,2694.8,2693.5,1.1855]
[1643677354883,0.4855,2694.8,2693.5,1.1855]
[1643677355078,0.1855,2694.8,2693.5,1.4855]
[1643677355478,0.83818397,2694.4,2693.5,1.4855]
[1643677355678,0.83818397,2694.4,2693.5,0.1855]
[1643677355886,1.13818397,2694.4,2693.5,0.1855]
[1643677356084,0.79856761,2693.9,2693.5,0.1855]
[1643677356686,0.4459137,2693.8,2693.5,0.1855]
[1643677356888,0.4459137,2693.8,2693.4,7.44]
[1643677357085,0.6314137,2693.8,2693.4,7.44]
[1643677357486,0.6314137,2693.8,2692.8,0.1855]
[1643677357487,0.6314137,2693.8,2692.7,0.88416969]
[1643677357689,0.6314137,2693.8,2692.9,0.1855]
[1643677357891,0.87807379,2693.4,2692.9,0.1855]
[1643677358092,0.87807379,2693.4,2692.6,7.44]
[1643677358093,0.73076191,2692.9,2692.7,2.68555578]
[1643677358338,0.60178941,2693.3,2692.7,2.50005578]
[1643677358339,1.65708941,2693.3,2692.7,2.50005578]
[1643677358741,1.77158941,2693.3,2692.7,2.50005578]
[1643677358939,0.1855,2693.2,2692.7,2.50005578]
[1643677359435,0.40016228,2692.8,2692.6,7.44]
[1643677360441,0.43174161,2692.3,2692.0,2.68555578]
[1643677360643,0.43174161,2692.3,2692.0,0.1855]
[1643677360838,0.1857,2693.0,2692.0,0.1855]
[1643677361643,0.1857,2693.0,2692.0,1.1855]
[1643677361844,0.44946979,2692.8,2692.0,1.1855]
[1643677362102,0.3863617,2692.3,2692.0,0.1855]
[1643677362294,0.31983281,2692.4,2692.1,5.85]
[1643677362494,0.4857,2693.1,2692.1,5.85]
[1643677362696,0.1857,2693.1,2692.1,5.85]
[1643677363094,0.1855,2693.2,2692.1,5.85]
[1643677363694,0.41689436,2692.5,2692.1,5.85]
[1643677363896,0.3,2692.9,2692.2,2.17339107]
[1643677364098,0.1855,2693.2,2692.3,0.1855]
[1643677364891,0.39859667,2692.5,2692.3,0.1855]
[1643677365941,0.39859667,2692.5,2692.1,5.85]
[1643677366345,0.79399925,2692.3,2691.9,2.68575578]
[1643677366548,1.09399925,2692.3,2691.9,2.50005578]
[1643677366943,0.79399925,2692.3,2691.9,2.50005578]
[1643677367146,2.0,2693.2,2693.0,1.02449058]
[1643677367346,0.3639761,2693.2,2693.0,1.02449058]
[1643677368545,0.70275102,2693.1,2693.0,1.02449058]
[1643677368749,1.17620629,2692.3,2691.5,2.32426025]
[1643677368944,1.17620629,2692.3,2691.5,0.1855]
[1643677368945,2.26920104,2692.2,2691.5,0.1855]
[1643677369349,0.88863906,2691.8,2691.5,0.1855]
[1643677369581,0.43142337,2691.7,2691.3,0.04]
[1643677369783,0.73142337,2691.7,2691.3,0.04]
[1643677372492,0.73142337,2691.7,2691.0,0.1857]
[1643677372493,1.1857,2691.6,2691.0,0.1857]
[1643677372692,0.1857,2691.6,2690.5,2.68575578]
[1643677372892,0.1857,2691.6,2690.6,1.56349431]
[1643677373329,0.38468192,2691.0,2690.6,1.56349431]
[1643677373746,0.38468192,2691.0,2690.1,0.1857]
[1643677373931,1.00804359,2691.2,2690.2,1.56348046]
[1643677374232,1.00804359,2691.2,2690.3,0.1857]
[1643677374435,1.00804359,2691.2,2690.4,1.56348046]
[1643677374633,1.00804359,2691.2,2690.5,1.74918046]
[1643677374832,1.00804359,2691.2,2690.6,1.56348046]
[1643677375032,1.00804359,2691.2,2690.5,0.1857]
[1643677376035,0.38911714,2690.9,2690.5,0.1857]
[1643677377184,0.1857,2691.1,2690.5,0.1857]
[1643677377185,2.2775222,2691.1,2690.9,0.18998552]
[1643677377384,1.00804359,2691.2,2690.5,0.1857]
[1643677377385,1.38125152,2690.6,2690.5,0.1857]
[1643677377784,1.68125152,2690.6,2690.5,0.226]
[1643677377986,1.68125152,2690.6,2690.5,0.0403]
[1643677378286,1.68125152,2690.6,2690.0,0.04314212]
[1643677378484,0.3,2690.6,2690.1,1.54371139]
[1643677378694,2.33142455,2691.3,2690.1,1.54371139]
[1643677378889,0.1857,2691.2,2690.1,1.54371139]
[1643677379089,0.1857,2691.2,2690.1,1.55587601]
[1643677379389,0.1857,2691.6,2690.7,0.01230515]
[1643677379597,0.40640008,2691.4,2690.7,0.01230515]
[1643677379788,0.40640008,2691.4,2690.7,0.19800515]
[1643677380090,0.1857,2691.8,2690.7,0.19800515]
[1643677380288,0.1857,2691.8,2690.8,0.535]
[1643677380689,0.1857,2692.2,2690.8,0.535]
[1643677381139,0.42416665,2691.8,2690.8,0.535]
[1643677381436,0.1857,2691.7,2690.8,0.535]
[1643677381675,0.1857,2691.7,2690.9,1.54584536]
[1643677381835,0.1857,2691.7,2691.0,0.535]
[1643677382035,0.4857,2691.7,2691.0,0.535]
[1643677382244,0.4857,2691.7,2690.7,0.49800515]
[1643677382437,0.4857,2691.7,2690.8,1.54701459]
[1643677382838,0.4857,2691.7,2690.9,0.535]
[1643677383039,0.4857,2691.7,2691.0,1.50323502]
[1643677383439,0.3,2691.7,2690.7,0.49800515]
[1643677383639,0.3,2691.7,2690.8,2.03823963]
[1643677383839,0.3,2691.7,2690.9,1.68893963]
[1643677384040,0.3,2691.7,2691.0,0.535]
[1643677384240,0.4857,2691.7,2691.0,0.535]
[1643677385288,0.4857,2691.7,2690.8,0.1857]
[1643677385491,0.4857,2691.7,2690.9,1.46523774]
[1643677385919,3.28630869,2692.3,2691.0,0.535]
[1643677385920,0.1857,2692.2,2691.0,0.535]
[1643677386492,3.28630869,2692.3,2691.0,0.535]